[Event "FIDE WCCC G10 2018"]
[Site "Santiago de Compostela"]
[Date "2018.11.12"]
[Round "8"]
[White "Zhapova, Yana"]
[Black "Chen, Yining"]
[Result "1/2-1/2"]
[ECO "B85"]
[WhiteElo "1821"]
[BlackElo "1457"]
[Annotator "NA RC"]
[PlyCount "139"]
[EventDate "2018.11.04"]
[EventType "swiss"]
[EventCountry "ESP"]
[SourceTitle "playchess.com"]
[Source "ChessBase"]
[SourceQuality "1"]
[TimeControl "40/5400+30:1800+30"]

{[%evp 8,122,35,20,51,27,24,16,29,29,22,46,18,22,43,21,72,34,28,20,82,-5,114,42,56,39,72,40,50,-9,0,0,0,0,0,0,15,0,15,0,12,0,32767,0,10,-12,32767,32767,-8,32767,32767,-10,-10,-30,-6,-13,-6,-8,32767,32767,8,32767,32767,32767,0,0,7,32767,32767,32767,32767,32767,32767,32767,0,32767,-41,32767,32767,-68,0,-4,32767,-6,2,-20,-19,-16,-12,-17,-13,-133,32767,32767,32767,-109,0,-119,-126,-142,-127,-139,-130,-131,-124,-182,-130,-143,-132,-165,-135,-199,-137,-141,-139,-150,-35]} 1. e4 {[%emt 0:00:00]} c5 {[%emt 0:00:00]} 2. Nf3 {[%emt 0:00:00]} e6 {[%emt 0:00:00]} 3. d4 {[%emt 0:00:00]} cxd4 {[%emt 0:00:00]} 4. Nxd4 {[%emt 0:00:01]} Nc6 {[%emt 0:00:00]} 5. Nc3 {[%emt 0:02:01]} a6 {[%emt 0:00:00]} 6. Be2 {[%emt 0:00:47]} Qc7 {[%emt 0:01:10]} 7. Be3 {[%emt 0:04:22]} Nf6 {[%emt 0:00:46]} 8. O-O {[%emt 0:00:48]} Be7 {[%emt 0:00:56]} 9. f4 {[%emt 0:05:32]} d6 {[%emt 0:00:29]} 10. Qe1 {[%emt 0:02:49]} O-O {[%emt 0:01:38] LiveBook: 847 Games} 11. Qg3 {[%emt 0:00:44]} Re8 {[%emt 0:06:21]} (11... Nxd4 $11 {keeps the balance.} 12. Bxd4 b5) 12. f5 {[%emt 0:07:30] B85: Sicilian Scheveningen: 6 Be2 a6, lines with early Be3} (12. Kh1 Rb8 13. Rad1 Nd7 14. f5 Nxd4 15. Bxd4 Bf8 16. Bh5 Ne5 17. f6 Ng6 18. e5 d5 19. Bxg6 hxg6 20. fxg7 Bxg7 21. Nxd5 Qxc2 22. Nf6+ Bxf6 23. exf6 e5 24. Qh4 g5 25. Qxg5+ {1-0 (25) Narayanan,S (2532)-Suarez Garcia,C (2472) Elgoibar 2017}) 12... Nxd4 {[%emt 0:11:14]} 13. Bxd4 {[%emt 0:00:12]} Kh8 $146 {[%emt 0:03:17]} ({Predecessor:} 13... e5 $11 14. Bf2 (14. Be3 b5 15. Bh6 Bf8 16. Bg5 Qd8 17. Bxf6 Qxf6 18. Nd5 Qd8 19. a4 Rb8 20. axb5 axb5 {1-0 (37) Mendonca,M (2426)-Caldeira,A (2214) Sao Paulo 2015}) 14... b5) 14. Rad1 {[%emt 0:06:05]} (14. fxe6 $16 Bxe6 15. Rab1) 14... b5 {[%emt 0:11:28] [#]} (14... e5 $11 15. Bf2 b5) 15. e5 {[%emt 0:02:30]} (15. fxe6 $1 $16 Bxe6 16. a3) 15... dxe5 {[%emt 0:01:13]} 16. Bxe5 {[%emt 0:00:01]} Qb6+ {[%emt 0:06:58] [#]} 17. Kh1 $1 {[%emt 0:00:26]} Bb7 {[%emt 0:10:02]} 18. Bf3 {[%emt 0:21:45]} (18. Bd4 $14 Bc5 19. Bxf6 gxf6 20. Bf3) 18... Bxf3 {[%emt 0:03:55]} 19. Rxf3 {[%emt 0:00:02]} Qc6 {[%emt 0:06:21]} 20. fxe6 {[%emt 0:09:01]} Qxe6 {[%emt 0:01:36]} 21. Re3 {[%emt 0:00:58]} Qg4 {[%emt 0:08:00]} 22. Qe1 {[%emt 0:03:35]} Bb4 {[%emt 0:05:50]} 23. Rdd3 {[%emt 0:11:43]} Qf5 {[%emt 0:07:53]} 24. h3 {[%emt 0:11:28]} Re7 {[%emt 0:04:45]} 25. Bxf6 {[%emt 0:02:21]} Qxf6 {[%emt 0:00:24]} 26. Nd5 {[%emt 0:02:35]} Bxe1 {[%emt 0:00:29]} 27. Nxf6 {[%emt 0:00:07]} Rxe3 {[%emt 0:00:24]} 28. Rxe3 {[%emt 0:00:19]} Bf2 {[%emt 0:00:53]} 29. Re2 {[%emt 0:00:55]} Bd4 {[%emt 0:00:18]} 30. Ne8 Bb6 {[%emt 0:02:14]} 31. Nd6 {[%emt 0:01:04]} Kg8 {[%emt 0:01:18]} 32. c4 {[%emt 0:01:00]} bxc4 {[%emt 0:01:07]} 33. Nxc4 {[%emt 0:00:01]} Bc5 {[%emt 0:00:56]} 34. a3 {[%emt 0:00:42]} f6 {[%emt 0:01:35]} 35. b4 {[%emt 0:00:13]} Bf8 {[%emt 0:00:23]} 36. Kg1 {[%emt 0:00:33]} Rc8 {[%emt 0:00:15]} 37. Nb6 {[%emt 0:04:32]} Rc3 {[%emt 0:00:39]} 38. Ra2 Kf7 {[%emt 0:00:56]} 39. Nd5 {[%emt 0:00:43]} Rc4 {[%emt 0:01:01]} 40. Kf2 {[%emt 0:00:00]} Ke6 {[%emt 0:00:00]} 41. Ne3 {[%emt 0:03:16]} Rc3 {[%emt 0:01:29]} 42. Re2 {[%emt 0:01:47]} Kd7 {[%emt 0:01:16]} 43. Nc2 {[%emt 0:01:06]} (43. Rd2+ $11 Ke6 44. Nc2) 43... Rb3 {[%emt 0:03:35]} (43... g6 $17) 44. Rd2+ {[%emt 0:00:24]} Kc8 {[%emt 0:02:52]} 45. Ke2 {[%emt 0:01:23]} g6 {[%emt 0:04:07]} 46. Rd4 {[%emt 0:01:11]} Rc3 {[%emt 0:02:20]} 47. Kd2 {[%emt 0:00:34]} Rg3 {[%emt 0:00:17]} 48. Rc4+ {[%emt 0:03:00]} Kb7 {[%emt 0:01:06]} 49. Rd4 {[%emt 0:06:52]} (49. Rg4 $1 $11 {was the only way to keep the balance.} Bh6+ 50. Ke2) 49... Rxg2+ {[%emt 0:01:20]} 50. Kd1 {[%emt 0:00:17]} Rg1+ {[%emt 0:00:59]} 51. Ke2 {[%emt 0:00:41]} Rg2+ {[%emt 0:00:45]} (51... Kc8 $17 52. Re4 Kd7 53. Rd4+ Ke7) 52. Kd1 {[%emt 0:00:06]} Kc7 {[%emt 0:00:38]} 53. Rd3 {[%emt 0:01:20]} Bd6 {[%emt 0:00:41]} 54. Ne3 {[%emt 0:01:52]} Rg1+ {[%emt 0:01:07]} 55. Ke2 {[%emt 0:00:26]} Be5 {[%emt 0:00:43]} 56. Nd5+ {[%emt 0:00:53]} (56. Rd5 $17) 56... Kb7 {[%emt 0:02:00]} 57. Ne3 {[%emt 0:00:28]} Kc6 {[%emt 0:00:23]} 58. Ng4 {[%emt 0:00:27]} Rg2+ {[%emt 0:01:10]} 59. Kd1 {[%emt 0:00:28]} (59. Kf1 $17 {might work better.} Ra2 60. Nxe5+ fxe5 61. h4) 59... h5 {[%emt 0:01:12]} 60. Nxe5+ {[%emt 0:01:50]} fxe5 {[%emt 0:00:05]} 61. Rc3+ {[%emt 0:00:10]} Kb6 $15 {[%emt 0:02:03]} (61... Kd6 $17 62. h4 Rg4) 62. Rc5 {[%emt 0:00:24]} Rg3 {[%emt 0:02:16]} 63. Rxe5 {[%emt 0:01:43]} Rxa3 {[%emt 0:02:03]} 64. Re6+ {[%emt 0:01:44]} Kb5 {[%emt 0:00:43]} 65. Rxg6 {[%emt 0:00:10]} Rxh3 {[%emt 0:00:50]} 66. Rh6 {[%emt 0:00:07]} Kxb4 {[%emt 0:00:35]} 67. Rxa6 {[%emt 0:00:09]} Re3 {[%emt 0:00:39]} 68. Kd2 {[%emt 0:00:54]} Re5 {[%emt 0:00:14]} 69. Kd3 {[%emt 0:00:20]} Kb5 {[%emt 0:00:21]} 70. Ra1 {[%emt 0:00:30]} 1/2-1/2

[Event "FIDE WCCC G10 2018"]
[Site "Santiago de Compostela"]
[Date "2018.11.12"]
[Round "8"]
[White "Shvedova, Alexandra"]
[Black "Kleymenova, Valeria"]
[Result "1-0"]
[ECO "D31"]
[WhiteElo "1782"]
[BlackElo "1773"]
[Annotator "NA RC"]
[PlyCount "75"]
[EventDate "2018.11.04"]
[EventType "swiss"]
[EventCountry "ESP"]
[SourceTitle "playchess.com"]
[Source "ChessBase"]
[SourceQuality "1"]
[TimeControl "40/5400+30:1800+30"]

1. d4 {[%emt 0:00:00]} d5 {[%emt 0:00:00]} 2. c4 {[%emt 0:00:00]} e6 {[%emt 0:00:24]} 3. Nc3 {[%emt 0:00:00]} c6 {[%emt 0:00:22]} 4. Nf3 {[%emt 0:00:00]} f5 {[%emt 0:01:10]} 5. Bf4 {[%emt 0:00:23]} Nf6 {[%emt 0:00:31]} 6. e3 {[%emt 0:00:04]} Bd6 {[%emt 0:01:09]} 7. Be2 {[%emt 0:00:50]} O-O {[%emt 0:00:49]} 8. O-O {[%emt 0:00:40]} Ne4 {[%emt 0:01:25]} 9. Qc2 {[%emt 0:01:09]} Qe7 {[%emt 0:09:49]} 10. Bxd6 {[%emt 0:01:52]} Qxd6 {[%emt 0:00:41]} 11. Nxe4 {[%emt 0:00:47]} fxe4 {[%emt 0:00:34]} 12. Ne5 {[%emt 0:00:06]} Nd7 {[%emt 0:01:30]} 13. f4 {[%emt 0:00:49]} exf3 {[%emt 0:15:48]} 14. Nxf3 {[%emt 0:00:06]} Rf6 {[%emt 0:12:32]} 15. e4 {[%emt 0:14:01]} dxe4 {[%emt 0:19:29]} 16. Qxe4 {[%emt 0:00:05]} Rf4 {[%emt 0:00:22]} 17. Qe3 {[%emt 0:07:07]} Nf6 {[%emt 0:07:52]} 18. Bd3 {[%emt 0:11:14]} Ng4 {[%emt 0:04:57]} 19. Bxh7+ {[%emt 0:01:31]} Kxh7 {[%emt 0:07:13]} 20. Ng5+ {[%emt 0:00:05]} Kg6 {[%emt 0:01:43]} 21. Qxf4 {[%emt 0:00:12]} Qxf4 {[%emt 0:00:09]} 22. Rxf4 {[%emt 0:00:04]} Kxg5 {[%emt 0:00:13]} 23. Rf8 {[%emt 0:01:16]} Nf6 {[%emt 0:00:43]} 24. Re1 {[%emt 0:01:20]} Nd7 {[%emt 0:08:38]} 25. Re8 {[%emt 0:01:36]} Nf6 {[%emt 0:01:15]} 26. Rd8 {[%emt 0:00:39]} Kf5 {[%emt 0:01:15]} 27. Re5+ {[%emt 0:00:46]} Kf4 {[%emt 0:00:42]} 28. g3+ {[%emt 0:01:25]} Kf3 {[%emt 0:01:19]} 29. b3 {[%emt 0:00:50]} b6 {[%emt 0:00:43]} 30. Rg5 {[%emt 0:02:06]} Bb7 {[%emt 0:00:40]} 31. Rxa8 {[%emt 0:00:17]} Bxa8 {[%emt 0:00:05]} 32. Rxg7 {[%emt 0:00:08]} c5 {[%emt 0:00:47]} 33. Rf7 {[%emt 0:02:39]} cxd4 {[%emt 0:00:32]} 34. Rxf6+ {[%emt 0:00:03]} Ke3 {[%emt 0:00:25]} 35. Rxe6+ {[%emt 0:00:35]} Be4 {[%emt 0:00:10]} 36. Kf1 {[%emt 0:00:17]} d3 {[%emt 0:00:04]} 37. Ke1 {[%emt 0:00:08]} d2+ {[%emt 0:00:04]} 38. Kd1 {[%emt 0:00:08]} 1-0

[Event "FIDE WCCC G10 2018"]
[Site "Santiago de Compostela"]
[Date "2018.11.12"]
[Round "8"]
[White "Zhou, Yafei"]
[Black "Zakirova, Aisha"]
[Result "1-0"]
[ECO "E12"]
[WhiteElo "1648"]
[BlackElo "1678"]
[Annotator "NA RC"]
[PlyCount "91"]
[EventDate "2018.11.04"]
[EventType "swiss"]
[EventCountry "ESP"]
[SourceTitle "playchess.com"]
[Source "ChessBase"]
[SourceQuality "1"]
[TimeControl "40/5400+30:1800+30"]

1. d4 {[%emt 0:00:00]} Nf6 {[%emt 0:00:00]} 2. c4 {[%emt 0:00:00]} e6 {[%emt 0:00:00]} 3. Nf3 {[%emt 0:00:00]} b6 {[%emt 0:00:00]} 4. a3 {[%emt 0:00:16]} Bb7 {[%emt 0:00:18]} 5. Nc3 {[%emt 0:00:21]} d5 {[%emt 0:04:14]} 6. Bg5 {[%emt 0:05:05]} Be7 {[%emt 0:06:03]} 7. e3 {[%emt 0:00:13]} Nbd7 {[%emt 0:02:01]} 8. Bd3 {[%emt 0:02:10]} O-O {[%emt 0:04:24]} 9. O-O {[%emt 0:00:20]} dxc4 {[%emt 0:11:06]} 10. Bxc4 {[%emt 0:00:07]} c5 {[%emt 0:00:25]} 11. Qe2 {[%emt 0:02:01]} Rc8 {[%emt 0:07:32]} 12. Bb3 {[%emt 0:02:08]} cxd4 {[%emt 0:06:30]} 13. exd4 {[%emt 0:01:55]} Re8 {[%emt 0:13:25]} 14. Rfd1 {[%emt 0:04:46]} h6 {[%emt 0:05:00]} 15. Bh4 {[%emt 0:01:27]} Nh5 {[%emt 0:03:53]} 16. Bxe7 {[%emt 0:01:16]} Qxe7 {[%emt 0:00:44]} 17. Qe3 {[%emt 0:05:11]} Nhf6 {[%emt 0:02:47]} 18. h3 {[%emt 0:02:20]} Qd6 {[%emt 0:05:58]} 19. Rac1 {[%emt 0:14:33]} Nd5 {[%emt 0:02:55]} 20. Nxd5 {[%emt 0:02:40]} Bxd5 {[%emt 0:01:04]} 21. Bxd5 {[%emt 0:00:15]} Qxd5 {[%emt 0:00:50]} 22. Rc3 {[%emt 0:09:01]} Nf6 {[%emt 0:03:49]} 23. Rdc1 {[%emt 0:02:48]} Qb7 {[%emt 0:01:54]} 24. Qd3 {[%emt 0:08:28]} Nd5 {[%emt 0:01:45]} 25. R3c2 {[%emt 0:01:18]} Nf4 {[%emt 0:01:31]} 26. Qe3 {[%emt 0:00:09]} Nd5 {[%emt 0:00:39]} 27. Qd2 {[%emt 0:00:07]} Red8 {[%emt 0:03:25]} 28. Ne5 {[%emt 0:01:45]} Rxc2 {[%emt 0:01:31]} 29. Rxc2 {[%emt 0:02:27]} Rc8 {[%emt 0:03:30]} 30. Qc1 {[%emt 0:07:45]} Rd8 {[%emt 0:01:42]} 31. b4 {[%emt 0:02:45]} Qa6 {[%emt 0:03:13]} 32. Rc4 {[%emt 0:10:16]} Rf8 {[%emt 0:02:42]} 33. Qb2 {[%emt 0:04:20]} f6 {[%emt 0:01:02]} 34. b5 {[%emt 0:00:13]} Qb7 {[%emt 0:00:28]} 35. Nc6 {[%emt 0:01:07]} Rc8 {[%emt 0:00:31]} 36. Qe2 {[%emt 0:05:28]} Re8 {[%emt 0:00:24]} 37. Qh5 {[%emt 0:01:16]} Rf8 {[%emt 0:00:30]} 38. Qe2 {[%emt 0:01:20]} Re8 {[%emt 0:00:24]} 39. Qc2 {[%emt 0:00:23]} Nf4 {[%emt 0:00:49]} 40. Ra4 {[%emt 0:00:00]} Ra8 {[%emt 0:00:00]} 41. Qe4 {[%emt 0:01:13]} Nd5 {[%emt 0:05:20]} 42. Qxe6+ {[%emt 0:00:17]} Qf7 {[%emt 0:00:08]} 43. Qxd5 {[%emt 0:00:36]} Qxd5 {[%emt 0:00:28]} 44. Ne7+ {[%emt 0:00:06]} Kf7 {[%emt 0:00:04]} 45. Nxd5 {[%emt 0:00:05]} Ke6 {[%emt 0:00:10]} 46. Nc7+ {[%emt 0:00:04] Kd5} 1-0

[Event "FIDE WCCC G10 2018"]
[Site "Santiago de Compostela"]
[Date "2018.11.12"]
[Round "8"]
[White "Da Cunha, Gabriela Goes"]
[Black "Yildiz, Elif Zeren"]
[Result "0-1"]
[ECO "B00"]
[WhiteElo "1464"]
[BlackElo "1448"]
[Annotator "NA RC"]
[PlyCount "85"]
[EventDate "2018.11.04"]
[EventType "swiss"]
[EventCountry "ESP"]
[SourceTitle "playchess.com"]
[Source "ChessBase"]
[SourceQuality "1"]
[TimeControl "40/5400+30:1800+30"]

1. e4 {[%emt 0:00:00]} d6 {[%emt 0:00:00]} 2. Nf3 {[%emt 0:00:00]} g6 {[%emt 0:00:00]} 3. Bc4 {[%emt 0:00:00]} Bg7 {[%emt 0:00:17]} 4. O-O {[%emt 0:00:16]} a6 {[%emt 0:00:45]} 5. a4 {[%emt 0:00:09]} b6 {[%emt 0:00:20]} 6. d4 {[%emt 0:02:20]} e6 {[%emt 0:00:24]} 7. c3 {[%emt 0:02:10]} Ne7 {[%emt 0:01:37]} 8. Bb3 {[%emt 0:00:14]} Bb7 9. Qe2 {[%emt 0:00:22]} Nd7 {[%emt 0:01:50]} 10. Bg5 {[%emt 0:02:48]} h6 {[%emt 0:00:26]} 11. Bh4 {[%emt 0:05:46]} g5 {[%emt 0:00:12]} 12. Bg3 {[%emt 0:00:17]} Ng6 {[%emt 0:00:16]} 13. Nbd2 {[%emt 0:08:48]} Qe7 {[%emt 0:05:07]} 14. Bc2 {[%emt 0:12:09]} h5 {[%emt 0:08:38]} 15. h3 {[%emt 0:04:44]} e5 {[%emt 0:08:41]} 16. d5 {[%emt 0:05:01]} Nf4 {[%emt 0:02:02]} 17. Qc4 {[%emt 0:07:57]} Nf8 {[%emt 0:04:29]} 18. a5 {[%emt 0:10:43]} b5 {[%emt 0:01:53]} 19. Qb4 {[%emt 0:01:38]} g4 20. Bxf4 {[%emt 0:03:22]} exf4 {[%emt 0:04:43]} 21. Nd4 {[%emt 0:02:05]} Bxd4 {[%emt 0:03:02]} 22. Qxd4 {[%emt 0:05:42]} Ng6 {[%emt 0:00:28]} 23. c4 {[%emt 0:06:30]} Qg5 {[%emt 0:03:58]} 24. Kh2 {[%emt 0:02:04]} Ne5 {[%emt 0:02:11]} 25. cxb5 {[%emt 0:04:12]} Rg8 {[%emt 0:05:36]} 26. Rg1 {[%emt 0:01:05]} axb5 {[%emt 0:01:10]} 27. Bd3 {[%emt 0:08:01]} Ba6 {[%emt 0:07:54]} 28. Qc3 {[%emt 0:01:40]} g3+ {[%emt 0:05:28]} 29. Kh1 {[%emt 0:00:32]} gxf2 {[%emt 0:01:00]} 30. Bf1 {[%emt 0:00:43]} fxg1=Q+ {[%emt 0:01:05]} 31. Kxg1 {[%emt 0:00:15]} Kd7 {[%emt 0:00:24]} 32. Nf3 {[%emt 0:00:19]} Nxf3+ {[%emt 0:02:15]} 33. Qxf3 {[%emt 0:00:08]} Rg6 {[%emt 0:01:43]} 34. Qc3 {[%emt 0:00:47]} Kd8 {[%emt 0:02:40]} 35. Qc6 {[%emt 0:00:25]} Ra7 {[%emt 0:00:12]} 36. Qc3 {[%emt 0:00:28]} Qe5 {[%emt 0:02:16]} 37. Qb3 {[%emt 0:01:02]} Rg3 {[%emt 0:00:52]} 38. Qc2 {[%emt 0:00:11]} f3 {[%emt 0:01:54]} 39. Qf2 {[%emt 0:00:23]} Ra8 {[%emt 0:00:42]} 40. Rc1 {[%emt 0:00:00]} b4 {[%emt 0:00:00]} 41. Qc2 {[%emt 0:00:53]} Ke7 {[%emt 0:05:39]} 42. Qxc7+ {[%emt 0:00:23]} Kf6 {[%emt 0:00:10]} 43. Bxa6 {[%emt 0:00:54]} 0-1

[Event "FIDE WCCC G10 2018"]
[Site "Santiago de Compostela"]
[Date "2018.11.12"]
[Round "8"]
[White "Nguyen, Ha Khanh Linh"]
[Black "Velea, Sophie"]
[Result "0-1"]
[ECO "D59"]
[WhiteElo "1449"]
[BlackElo "1593"]
[Annotator "NA RC"]
[PlyCount "172"]
[EventDate "2018.11.04"]
[EventType "swiss"]
[EventCountry "ESP"]
[SourceTitle "playchess.com"]
[Source "ChessBase"]
[SourceQuality "1"]
[TimeControl "40/5400+30:1800+30"]

1. d4 {[%emt 0:00:00]} d5 {[%emt 0:00:00]} 2. Nf3 {[%emt 0:00:11]} e6 {[%emt 0:00:20]} 3. c4 {[%emt 0:00:43]} Be7 {[%emt 0:00:45]} 4. Nc3 {[%emt 0:00:33]} Nf6 {[%emt 0:00:56]} 5. Bg5 {[%emt 0:00:18]} h6 {[%emt 0:00:57]} 6. Bh4 {[%emt 0:03:07]} O-O {[%emt 0:00:28]} 7. e3 {[%emt 0:00:21]} b6 {[%emt 0:05:41]} 8. cxd5 {[%emt 0:00:35]} Nxd5 {[%emt 0:01:46]} 9. Bxe7 {[%emt 0:01:55]} Qxe7 {[%emt 0:00:43]} 10. e4 {[%emt 0:02:58]} Nxc3 {[%emt 0:03:41]} 11. bxc3 {[%emt 0:00:13]} Bb7 {[%emt 0:00:38]} 12. Bd3 {[%emt 0:05:44]} Nd7 {[%emt 0:02:20]} 13. O-O {[%emt 0:02:45]} c5 {[%emt 0:01:12]} 14. Rc1 {[%emt 0:02:54]} Rac8 {[%emt 0:03:19]} 15. Qe2 {[%emt 0:02:59]} Rc7 {[%emt 0:03:25]} 16. Qb2 {[%emt 0:19:59]} Rfc8 {[%emt 0:08:05]} 17. Nd2 {[%emt 0:08:06]} Qf6 {[%emt 0:12:06]} 18. e5 {[%emt 0:13:18]} Qg5 {[%emt 0:05:47]} 19. Be4 {[%emt 0:03:55]} Ba6 {[%emt 0:12:07]} 20. Rfe1 {[%emt 0:09:31]} cxd4 {[%emt 0:13:42]} 21. cxd4 {[%emt 0:00:29]} f5 {[%emt 0:01:13]} 22. Bf3 {[%emt 0:07:53]} Qe7 {[%emt 0:05:52]} 23. h3 {[%emt 0:02:56]} Nf8 {[%emt 0:06:35]} 24. Nb3 {[%emt 0:03:13]} Bc4 {[%emt 0:01:23]} 25. Nd2 {[%emt 0:01:24]} b5 {[%emt 0:01:11]} 26. Nxc4 {[%emt 0:01:49]} bxc4 {[%emt 0:02:00]} 27. Rc3 {[%emt 0:00:47]} Nd7 {[%emt 0:01:10]} 28. d5 {[%emt 0:03:07]} exd5 {[%emt 0:00:59]} 29. Bxd5+ {[%emt 0:00:11]} Kh8 {[%emt 0:00:21]} 30. Qe2 {[%emt 0:00:56]} Nb6 {[%emt 0:00:34]} 31. Bf3 {[%emt 0:00:42]} Qe6 {[%emt 0:00:54]} 32. g4 {[%emt 0:01:05]} Re8 {[%emt 0:01:35]} 33. gxf5 {[%emt 0:00:47]} Qxf5 {[%emt 0:00:12]} 34. Bg4 {[%emt 0:00:14]} Qg6 {[%emt 0:02:01]} 35. Rg3 {[%emt 0:00:24]} Qc6 {[%emt 0:00:58]} 36. Bf5 {[%emt 0:00:55]} Rce7 {[%emt 0:00:59]} 37. Rg6 {[%emt 0:00:34]} Qd5 {[%emt 0:00:11]} 38. f4 {[%emt 0:00:26]} Qd4+ {[%emt 0:00:52]} 39. Qf2 {[%emt 0:00:23]} Qd5 {[%emt 0:00:47]} 40. Be4 {[%emt 0:00:00]} Qf7 {[%emt 0:00:00]} 41. Rg4 {[%emt 0:07:14]} Rf8 {[%emt 0:03:14]} 42. Bg6 {[%emt 0:04:09]} Qd5 {[%emt 0:01:43]} 43. Qe3 {[%emt 0:00:59]} Rc8 {[%emt 0:06:22]} 44. f5 {[%emt 0:04:08]} Qc5 {[%emt 0:01:46]} 45. Rd4 {[%emt 0:04:08]} Nd5 {[%emt 0:02:14]} 46. Qf2 {[%emt 0:03:46]} c3 {[%emt 0:01:47]} 47. Rdd1 {[%emt 0:02:58]} c2 {[%emt 0:06:43]} 48. Qxc5 {[%emt 0:01:42]} Rxc5 {[%emt 0:00:13]} 49. Rc1 {[%emt 0:02:09]} Nb4 {[%emt 0:00:54]} 50. f6 {[%emt 0:00:37]} gxf6 {[%emt 0:01:05]} 51. a3 {[%emt 0:00:44]} Nc6 {[%emt 0:06:19]} 52. Rxc2 {[%emt 0:00:58]} Rxc2 {[%emt 0:00:41]} 53. Bxc2 {[%emt 0:00:12]} Nd4 {[%emt 0:01:10]} 54. Be4 {[%emt 0:01:50]} Rxe5 {[%emt 0:00:31]} 55. Kf2 {[%emt 0:00:28]} Nb5 {[%emt 0:01:42]} 56. a4 {[%emt 0:00:39]} Nc3 {[%emt 0:00:23]} 57. Bc2 {[%emt 0:00:23]} Rxe1 {[%emt 0:00:52]} 58. Kxe1 {[%emt 0:00:06]} Kg7 {[%emt 0:00:25]} 59. Kf2 {[%emt 0:00:30]} Kf7 {[%emt 0:00:20]} 60. Kf3 {[%emt 0:01:09]} Ke6 {[%emt 0:01:42]} 61. Kg4 {[%emt 0:01:34]} Ne2 {[%emt 0:01:00]} 62. Bd1 {[%emt 0:00:25]} f5+ {[%emt 0:00:34]} 63. Kf3 {[%emt 0:00:37]} Nd4+ {[%emt 0:00:13]} 64. Kf4 {[%emt 0:00:38]} Kf6 {[%emt 0:00:25]} 65. h4 {[%emt 0:00:54]} Ne6+ {[%emt 0:00:30]} 66. Ke3 {[%emt 0:00:20]} Ke5 {[%emt 0:00:18]} 67. Bc2 {[%emt 0:00:58]} f4+ {[%emt 0:00:59]} 68. Kf2 {[%emt 0:00:11]} Nd4 {[%emt 0:00:17]} 69. Bd3 {[%emt 0:00:40]} Nf5 {[%emt 0:00:47]} 70. h5 {[%emt 0:00:47]} Ng3 {[%emt 0:00:49]} 71. Bg6 {[%emt 0:00:10]} Kf6 {[%emt 0:00:33]} 72. Kg2 {[%emt 0:00:28]} Kg5 {[%emt 0:00:25]} 73. Kf3 {[%emt 0:00:03]} Nf5 {[%emt 0:00:29]} 74. Be8 {[%emt 0:00:31]} Nh4+ {[%emt 0:00:38]} 75. Ke4 {[%emt 0:01:24]} Kg4 {[%emt 0:00:26]} 76. Kd5 {[%emt 0:00:11]} f3 {[%emt 0:00:18]} 77. Bb5 {[%emt 0:00:11]} Nf5 {[%emt 0:00:22]} 78. Kc6 {[%emt 0:00:09]} Nd4+ {[%emt 0:00:13]} 79. Kb7 {[%emt 0:00:14]} Nxb5 {[%emt 0:00:28]} 80. axb5 {[%emt 0:00:01]} f2 {[%emt 0:00:13]} 81. Kxa7 {[%emt 0:00:23]} f1=Q {[%emt 0:00:08]} 82. b6 {[%emt 0:00:06]} Qa1+ {[%emt 0:00:18]} 83. Kb8 {[%emt 0:00:08]} Kxh5 {[%emt 0:00:26]} 84. b7 {[%emt 0:00:04]} Kg4 {[%emt 0:00:17]} 85. Kc7 {[%emt 0:00:11]} Qb2 {[%emt 0:00:22]} 86. Kc8 {[%emt 0:00:19]} h5 0-1

[Event "FIDE WCCC G10 2018"]
[Site "Santiago de Compostela"]
[Date "2018.11.12"]
[Round "8"]
[White "Wu, Abbie"]
[Black "Szczotka, Klara"]
[Result "1-0"]
[ECO "B45"]
[WhiteElo "1446"]
[BlackElo "1581"]
[Annotator "NA RC"]
[PlyCount "79"]
[EventDate "2018.11.04"]
[EventType "swiss"]
[EventCountry "ESP"]
[SourceTitle "playchess.com"]
[Source "ChessBase"]
[SourceQuality "1"]
[TimeControl "40/5400+30:1800+30"]

1. e4 {[%emt 0:00:00]} c5 {[%emt 0:00:00]} 2. Nc3 {[%emt 0:00:00]} e6 {[%emt 0:00:00]} 3. Nf3 {[%emt 0:00:00]} Nc6 {[%emt 0:00:12]} 4. d4 {[%emt 0:00:00]} cxd4 {[%emt 0:00:11]} 5. Nxd4 {[%emt 0:00:00]} Nf6 {[%emt 0:00:06]} 6. g3 {[%emt 0:00:00]} Bb4 {[%emt 0:00:52]} 7. Bg2 {[%emt 0:02:05]} a6 {[%emt 0:02:00]} 8. O-O {[%emt 0:01:26]} O-O {[%emt 0:02:17]} 9. a3 {[%emt 0:01:57]} Bxc3 {[%emt 0:00:17]} 10. bxc3 {[%emt 0:00:14]} d5 {[%emt 0:04:54]} 11. Nxc6 {[%emt 0:03:17]} bxc6 {[%emt 0:00:18]} 12. e5 {[%emt 0:00:46]} Nd7 {[%emt 0:00:39]} 13. Qe2 {[%emt 0:04:00]} Qc7 {[%emt 0:00:33]} 14. f4 {[%emt 0:00:38]} Bb7 {[%emt 0:01:33]} 15. Be3 {[%emt 0:01:25]} c5 {[%emt 0:04:51]} 16. Qf2 {[%emt 0:02:32]} Rac8 {[%emt 0:22:16]} 17. Rab1 {[%emt 0:01:17]} Ba8 {[%emt 0:01:07]} 18. g4 {[%emt 0:08:05]} Qa5 {[%emt 0:14:44]} 19. f5 {[%emt 0:05:33]} Nxe5 {[%emt 0:10:54]} 20. f6 {[%emt 0:00:34]} Nd7 {[%emt 0:14:20]} 21. fxg7 {[%emt 0:01:10]} Kxg7 {[%emt 0:00:48]} 22. Qh4 {[%emt 0:05:10]} Qxc3 {[%emt 0:08:58]} 23. Bh6+ {[%emt 0:00:42]} Kg8 {[%emt 0:00:19]} 24. Qg5+ {[%emt 0:00:51]} Kh8 {[%emt 0:00:13]} 25. Bxf8 {[%emt 0:01:10]} Rxf8 {[%emt 0:04:05]} 26. Qe7 {[%emt 0:01:44]} Qd4+ {[%emt 0:00:57]} 27. Kh1 {[%emt 0:00:17]} Qa4 {[%emt 0:01:39]} 28. Rxf7 {[%emt 0:01:04]} Rxf7 {[%emt 0:00:28]} 29. Qxf7 {[%emt 0:00:15]} h6 {[%emt 0:02:03]} 30. Qe8+ {[%emt 0:00:38]} Kg7 {[%emt 0:00:12]} 31. Qxa8 {[%emt 0:00:30]} Qxc2 {[%emt 0:00:20]} 32. Qb7 {[%emt 0:00:27]} Kg6 {[%emt 0:00:35]} 33. Rf1 {[%emt 0:01:14]} Nf6 {[%emt 0:00:30]} 34. Qe7 {[%emt 0:00:56]} Nxg4 {[%emt 0:00:55]} 35. Qxe6+ {[%emt 0:00:11]} Kg5 {[%emt 0:00:12]} 36. Qxd5+ {[%emt 0:00:14]} Kh4 {[%emt 0:00:27]} 37. Qf3 {[%emt 0:00:41]} h5 {[%emt 0:01:33]} 38. h3 {[%emt 0:00:37]} Nh6 {[%emt 0:01:07]} 39. Qf6+ {[%emt 0:00:17]} Kg3 {[%emt 0:00:17]} 40. Rf3# {[%emt 0:00:00]} 1-0